[Event "Rapid Shavuot-A 2023"]
[Site "Ramat Gan"]
[Date "2023.05.25"]
[Round "2.15"]
[White "Sherman, Reem"]
[Black "Duchan, Yoav"]
[Result "1-0"]
[ECO "B76"]
[WhiteElo "2306"]
[BlackElo "1906"]
[Annotator "TA"]
[PlyCount "182"]
[EventDate "2023.05.19"]
[EventType "swiss"]
[EventCountry "ISR"]
[SourceTitle "playchess.com"]
[Source "ChessBase"]
[SourceQuality "1"]
[TimeControl "900+5"]

{[%evp 24,182,62,50,110,123,121,119,185,185,217,191,187,125,189,189,214,169,179,0,283,0,0,0,-2,-135,-141,-122,-33,-40,-41,-47,-15,-87,0,0,0,0,0,0,0,0,0,0,0,0,0,0,0,0,0,0,52,55,53,47,635,734,704,364,1280,925,12841,1473,6599,1644,1604,1584,1708,1612,1700,1686,1619,1561,1330,1298,483,300,253,0,0,0,0,0,0,0,0,0,0,0,0,0,0,0,0,0,0,0,0,0,0,0,0,0,0,0,0,0,0,0,0,0,0,0,0,0,0,0,0,0,0,0,153,137,842,511,12828,12818,12835,12820,12836,12837,12837,12838,12838,12839,12841,12839,12841,12840,12841,12839,12845,12846,12846,12847,12847,12844,12848,12847,12849,12849,12850,12850,27999,27999,27999,27999,27999,27999,27999]} 1. e4 {[%emt 0:00:11]} c5 {[%emt 0:00:01]} 2. Nf3 {[%emt 0:00:02]} Nc6 {[%emt 0:00:01]} 3. d4 {[%emt 0:00:02]} cxd4 {[%emt 0:00:02]} 4. Nxd4 {[%emt 0:00:02]} d6 {[%emt 0:00:08]} 5. Nc3 {[%emt 0:00:05]} g6 {[%emt 0:00:02]} 6. Be3 {[%emt 0:00:03]} Bg7 {[%emt 0:00:01]} 7. f3 {[%emt 0:00:16]} Nf6 {[%emt 0:00:02]} 8. Qd2 {[%emt 0:00:02]} O-O {[%emt 0:00:01]} 9. O-O-O {[%emt 0:00:04]} d5 {[%emt 0:00:22]} 10. Qe1 {[%emt 0:00:03]} e5 {[%emt 0:00:36]} 11. Nxc6 {[%emt 0:00:02]} bxc6 {[%emt 0:00:01]} 12. exd5 {[%emt 0:00:01]} cxd5 {[%emt 0:00:19]} 13. Bg5 {[%emt 0:00:51][%cal Oc3d5] Nxd5! is the strong threat. White is more active.} Qe8 {[%emt 0:03:02] B76: Sicilian Dragon: Yugoslav Attack, 9 g4 and 9 0-0-0.} (13... Be6 $14) 14. Bxf6 $1 $16 {[%emt 0:00:17]} (14. Nxd5 $6 Nxd5 15. Rxd5 Qc6 $11) 14... Bxf6 {[%emt 0:00:01]} 15. Nxd5 {[%emt 0:00:04] [#]} Bg5+ $146 {[%emt 0:00:02]} (15... Bg7 $16 {is a better defense.}) ({Predecessor:} 15... Bg7 16. Nc7 Qa4 17. Nxa8 Bf5 18. Qc3 Qxa2 19. Kd2 Rc8 20. Nc7 e4 21. Qa3 Rd8+ {1-0 Morona Minguez,M (1838)-Greciano Reiskila,M (1970) Collado Villalba op-A 27th 2010 (7)}) 16. Kb1 $18 {[%emt 0:00:08]} Bf5 {[%emt 0:00:11]} 17. g4 {[%emt 0:02:48]} Be6 {[%emt 0:01:29]} 18. Bc4 {[%emt 0:00:41]} (18. Qxe5 Bxd5 19. Rxd5 (19. Qxd5 $2 Rd8 $17 {[%mdl 64] Skewer}) 19... Qxe5 20. Rxe5 Rae8) (18. Nc7 $1 $18 {[%cal Rc7e8]} Qa4 19. Nxe6 (19. Qxe5 $2 Qxa2#) 19... fxe6 20. Qxe5) 18... Qc6 {[%emt 0:00:46]} (18... Bxd5 $16 19. Bxd5 (19. Rxd5 Bf4 $16) 19... Rb8) 19. Qxe5 {[%emt 0:01:28]} Qxc4 {[%emt 0:00:04]} 20. Qxg5 {[%emt 0:00:26]} Rac8 {[%emt 0:00:20][%cal Oc8c5,Ba8c8,Bc8c4,Bc4g4,Bg4g2][%mdl 32]} 21. c3 $2 {[%emt 0:03:35]} (21. Nc3 $1 $18) 21... f6 $2 {[%emt 0:01:04][%mdl 8192] [#]} 22. b3 $1 {[%emt 0:02:21]} fxg5 $11 {[%emt 0:00:29]} 23. bxc4 {[%emt 0:00:02]} Rxc4 {[%emt 0:00:02]} 24. Kb2 {[%emt 0:00:43]} (24. Rhe1 $11 Bxd5 25. Rxd5) 24... Rxf3 $17 {[%emt 0:01:46][%cal Oc4c5]} 25. Rhe1 {[%emt 0:00:03]} Bxd5 {[%emt 0:01:30]} (25... Bxg4 26. Kb3 Rc5 27. Kb4 $16) (25... Bf7 $17 {...Rf2+ would be deadly.} 26. Rd2 Rxg4) 26. Rxd5 $15 {[%emt 0:00:01]} Rxg4 $17 {[%emt 0:00:09][%mdl 4096] Endgame KRR-KRR} 27. Re2 {[%emt 0:01:12] Against Rg2} h5 {[%emt 0:00:57]} 28. Kb3 {[%emt 0:00:06]} (28. Rd6 $11) 28... h4 {[%emt 0:00:26]} (28... Rg1 $1 $17) 29. Re6 $11 {[%emt 0:00:06]} Kg7 {[%emt 0:01:11] Threatens to win with ...Kh6.} 30. Rdd6 {[%emt 0:00:12]} h3 {[%emt 0:00:08]} 31. Ra6 {[%emt 0:00:19]} Rg2 {[%emt 0:01:47]} 32. Rxg6+ {[%emt 0:00:11]} (32. Rxa7+ $2 Kh6 33. Ra8 (33. Ree7 $2 g4 $19) 33... Rxh2 $19) 32... Kf7 {[%emt 0:00:08]} 33. Rgc6 {[%emt 0:00:37]} g4 {[%emt 0:00:14]} (33... Rxh2 34. Rxa7+ Kg8 35. Rg6+ Kf8 36. Rxg5 $14) 34. Rxa7+ {[%emt 0:00:12]} Kg8 {[%emt 0:00:00]} 35. Rg6+ {[%emt 0:00:24]} Kf8 {[%emt 0:00:24]} 36. Rh6 {[%emt 0:00:09][%cal Rh6h8]} Kg8 {[%emt 0:00:03] Inhibits Rh8+.} 37. a4 {[%emt 0:00:03][%cal Ba2a4,Ba4a5][%mdl 32]} Rxh2 {[%emt 0:00:21]} ({Black should play} 37... Rf7 $11 38. Rxf7 {[%mdl 64] Remove Defender} Kxf7) 38. Rg6+ $14 {[%emt 0:00:02]} Kf8 {[%emt 0:00:00]} 39. Rxg4 {[%emt 0:00:02]} Rg2 $2 {[%emt 0:00:01][%mdl 8192]} (39... Rh1 $14 40. Rh4 Rf7 41. Rxf7+ Kxf7) 40. Rh4 $18 {[%emt 0:00:06] Black must now prevent Rh8+.} Kg8 {[%emt 0:00:08] Against Rh8+} 41. a5 {[%emt 0:00:16]} Rgg3 $2 {[%emt 0:00:04]} (41... Rg5 42. Kb4 Rg1) 42. Rc7 {[%emt 0:00:02]} Rf5 {[%emt 0:00:04]} 43. Kb4 {[%emt 0:00:04]} (43. a6 $142 Rf8 44. Rch7 Rb8+ 45. Ka4) 43... Rg1 {[%emt 0:00:05]} 44. Rxh3 {[%emt 0:00:09]} (44. a6 $142 Ra1 45. a7 (45. Rxh3 Rxa6 46. c4 Rb6+ 47. Kc3 Ra6 $16)) 44... Rb1+ {[%emt 0:00:02]} 45. Kc4 {[%emt 0:00:02] aiming for a6.} Rxa5 {[%emt 0:00:06]} 46. Rd3 {[%emt 0:00:03][%cal Rd3d8]} Rb8 {[%emt 0:00:06] Dodges Rd8+} 47. Rdd7 {[%emt 0:00:04]} Rg5 {[%emt 0:00:03] Wards off Rg7+} 48. Re7 {[%emt 0:00:04]} Kf8 {[%emt 0:00:03]} 49. Rh7 {[%emt 0:00:02] And now Rh8+ would win.} Kg8 {[%emt 0:00:06] Prevents Rh8+.} 50. Kd4 {[%emt 0:00:06]} Rd8+ {[%emt 0:00:08]} 51. Ke4 $2 {[%emt 0:00:12]} (51. Rhd7 $1 $18 {[%cal Rd7d8]} Rxd7+ 52. Rxd7) 51... Rg4+ {[%emt 0:00:01]} 52. Kf5 {[%emt 0:00:02]} Rg1 {[%emt 0:00:01]} 53. c4 {[%emt 0:00:04]} Rf1+ {[%emt 0:00:04]} 54. Ke4 {[%emt 0:00:04] Hoping for Rcg7+.} Re1+ {[%emt 0:00:01]} 55. Kf3 {[%emt 0:00:02]} Rc1 {[%emt 0:00:04]} 56. Rh4 {[%emt 0:00:14]} Rc2 {[%emt 0:00:04]} 57. Re4 {[%emt 0:00:06]} Rc3+ {[%emt 0:00:04]} 58. Kf4 {[%emt 0:00:03]} Rc1 {[%emt 0:00:04]} 59. c5 {[%emt 0:00:05]} Kf8 {[%emt 0:00:10]} 60. Rh7 {[%emt 0:00:08]} Kg8 {[%emt 0:00:03] Against Rh8+} 61. Rh5 {[%emt 0:00:02]} Rc8 {[%emt 0:00:06]} 62. Ree5 {[%emt 0:00:00]} ({Much less strong is} 62. Rg5+ $6 Kf7 $16) 62... Rc4+ {[%emt 0:00:00]} 63. Ke3 {[%emt 0:00:03]} Rc1 {[%emt 0:00:04]} 64. Ref5 {[%emt 0:00:03]} Kg7 {[%emt 0:00:03]} 65. Rhg5+ {[%emt 0:00:03]} Kh6 {[%emt 0:00:02]} 66. Kd4 {[%emt 0:00:05]} Rd8+ {[%emt 0:00:04]} 67. Ke3 {[%emt 0:00:02]} Rc8 {[%emt 0:00:10]} 68. Rd5 {[%emt 0:00:05]} Re8+ {[%emt 0:00:06]} 69. Rge5 {[%emt 0:00:09]} Rc8 $1 {[%emt 0:00:15]} 70. Kd2 {[%emt 0:00:12]} Rc4 $1 {[%emt 0:00:08]} 71. Kd3 {[%emt 0:00:01]} Rc1 $1 {[%emt 0:00:01]} 72. Rg5 {[%emt 0:00:04]} Re8 $2 {[%emt 0:00:10] [#] Black is now going downhill.} ({Black should try} 72... Rc7 $1 $11) 73. Rg2 $1 $16 {[%emt 0:00:12] Strongly threatening Rd6+.} Rc8 $2 {[%emt 0:00:08][%mdl 8192] [#]} (73... Ra8 $16 74. Rb2 Kg7 75. Rb7+ Kf6) 74. Rc2 $1 $18 {[%emt 0:00:02]} Rd1+ {[%emt 0:00:01]} (74... Ra1 $142 75. Rd6+ Kg5) 75. Kc4 {[%emt 0:00:02]} Rb1 {[%emt 0:00:08]} 76. Rd6+ {[%emt 0:00:03]} Kg7 {[%emt 0:00:02]} 77. c6 {[%emt 0:00:03]} Kf7 {[%emt 0:00:02]} 78. Kc5 {[%emt 0:00:05]} Rb3 {[%emt 0:00:05]} 79. Rc4 {[%emt 0:00:01]} Rb1 {[%emt 0:00:04]} 80. Rd2 {[%emt 0:00:03]} Re1 {[%emt 0:00:09]} 81. Rd7+ {[%emt 0:00:08]} Ke6 {[%emt 0:00:05]} 82. Rdd4 {[%emt 0:00:05]} Re5+ {[%emt 0:00:02]} 83. Kb6 {[%emt 0:00:02]} Rb8+ {[%emt 0:00:11]} 84. Kc7 {[%emt 0:00:04]} Reb5 {[%emt 0:00:04]} 85. Re4+ {[%emt 0:00:09]} Kd5 {[%emt 0:00:04]} 86. Kd7 {[%emt 0:00:06]} Rh8 {[%emt 0:00:08]} 87. Rcd4+ {[%emt 0:00:11]} Kc5 {[%emt 0:00:05]} 88. Re5+ {[%emt 0:00:05]} Kxd4 {[%emt 0:00:02]} 89. Rxb5 {[%emt 0:00:01] White mates.} Rh7+ {[%emt 0:00:01]} 90. Kc8 {[%emt 0:00:03]} Kc4 {[%emt 0:00:03]} 91. Rg5 {[%emt 0:00:02]} ({Stronger than} 91. Rb7 Rh8+ 92. Kc7 Kc5 $11) 91... Rh8+ {[%emt 0:00:00] Weighted Error Value: White=0.40/Black=0.46} 1-0

[Event "Rapid Shavuot-A 2023"]
[Site "Ramat Gan"]
[Date "2023.05.25"]
[Round "2.16"]
[White "Noy, Eyal"]
[Black "Meirovich, Ilay"]
[Result "1/2-1/2"]
[ECO "E16"]
[WhiteElo "2141"]
[BlackElo "1872"]
[Annotator "TA"]
[PlyCount "114"]
[EventDate "2023.05.19"]
[EventType "swiss"]
[EventCountry "ISR"]
[SourceTitle "playchess.com"]
[Source "ChessBase"]
[SourceQuality "1"]
[TimeControl "900+5"]

{[%evp 17,114,25,26,19,52,35,72,37,95,101,89,69,140,100,89,67,75,64,80,72,97,42,34,32,26,46,36,43,35,0,0,0,0,0,126,138,167,46,228,225,223,206,306,286,408,426,691,328,337,319,326,297,289,254,314,304,293,278,399,389,530,519,515,481,444,54,32,40,650,626,599,171,186,185,178,167,322,316,194,43,49,42,92,-34,-34,-34,-34,-34,8,8,8,8,8,8,8,8,8,8,8]} 1. d4 {[%emt 0:00:00]} Nf6 {[%emt 0:00:01]} 2. c4 {[%emt 0:00:01]} e6 {[%emt 0:00:02]} 3. Nf3 {[%emt 0:00:02]} Bb4+ {[%emt 0:00:04]} 4. Bd2 {[%emt 0:00:00]} a5 {[%emt 0:00:01]} 5. g3 {[%emt 0:00:01]} b6 {[%emt 0:00:01]} 6. Bg2 {[%emt 0:00:01]} Bb7 {[%emt 0:00:01]} 7. O-O {[%emt 0:00:01]} O-O {[%emt 0:00:02]} 8. a3 {[%emt 0:00:08]} Bxd2 9. Qxd2 {[%emt 0:00:01] The modern move.} d6 {[%emt 0:00:14]} 10. Nc3 {[%emt 0:00:02] E16: Queen's Indian: 4 g3 Bb7 5 Bg2 Bb4+.} Nbd7 {[%emt 0:00:01]} 11. Qc2 {[%emt 0:00:06]} e5 {[%emt 0:00:11]} 12. d5 {[%emt 0:00:12] [#] White is better.} c6 $146 {[%emt 0:00:36]} (12... Qe7 $14) ({Predecessor:} 12... Ne8 13. b4 f5 14. Nd2 g6 15. Nb3 axb4 16. axb4 Nef6 17. Rxa8 Qxa8 18. Ra1 Qb8 {1-0 Giri,A (2764)-Javakhadze,Z (2454) Titled Tuesday intern op 16th June blitz 2020 (4)}) 13. dxc6 $1 $16 {[%emt 0:00:19]} Bxc6 {[%emt 0:00:02]} 14. Rad1 {[%emt 0:00:01]} Qe7 {[%emt 0:00:11]} (14... Qc7 $14) 15. Qd2 {[%emt 0:00:08]} Ne8 {[%emt 0:00:01]} 16. Ng5 {[%emt 0:02:05]} Bxg2 {[%emt 0:00:07]} 17. Kxg2 {[%emt 0:00:04]} Ndf6 {[%emt 0:00:19]} 18. Qd3 {[%emt 0:00:28]} g6 {[%emt 0:00:35]} 19. Nb5 {[%emt 0:00:53] White is much more active. The black rooks are badly placed.} (19. f3 $16) 19... Rd8 $14 {[%emt 0:00:48]} 20. Qf3 {[%emt 0:00:42] Wards off d5} d5 {[%emt 0:02:25]} 21. cxd5 {[%emt 0:00:36]} e4 {[%emt 0:00:02]} 22. Qb3 {[%emt 0:00:22]} Qe5 {[%emt 0:00:04][%csl LRd5,LRg5]} 23. f4 {[%emt 0:01:08]} (23. h4 $5 {[%cal Rb5a7]}) 23... exf3+ {[%emt 0:00:02]} 24. Nxf3 {[%emt 0:00:02]} Qxe2+ {[%emt 0:00:14]} 25. Rf2 {[%emt 0:00:01]} Qe4 {[%emt 0:00:30]} (25... Qe7 $1 $11) 26. Nc3 $1 $36 {[%emt 0:00:45][%csl LRb6,LRe4][%mdl 2048] White is on the roll.} Qe3 {[%emt 0:00:07] [#]} 27. Re2 {[%emt 0:00:32]} (27. Rd4 $1 $18) 27... Qh6 $2 {[%emt 0:02:31]} (27... Qc5 $14) 28. Qxb6 $18 {[%emt 0:00:14]} Nd6 {[%emt 0:00:02] Black is weak on the dark squares} 29. Qxa5 {[%emt 0:00:18]} Nc4 {[%emt 0:00:32]} (29... Rfe8 {is a better defense.} 30. Rde1 Nf5 31. Rxe8+ Rxe8 32. Rxe8+ Nxe8) 30. Qc5 {[%emt 0:00:01]} Rc8 {[%emt 0:00:09]} (30... Nd6 {was necessary.} 31. Rde1 Ng4) 31. Qd4 {[%emt 0:00:02]} Nh5 {[%emt 0:00:13]} (31... Ne8 $142 32. Ne4 Ncd6 33. Nxd6 Nxd6) 32. a4 {[%emt 0:00:53]} (32. d6 $142 Nxd6 33. Qxd6) 32... Ng7 {[%emt 0:00:20]} 33. g4 {[%emt 0:00:44][%cal Bg3g4,Bg4g5][%mdl 32] Against Nf5. Black must now prevent Ne4.} Nd6 {[%emt 0:00:25]} 34. Qd2 {[%emt 0:02:01]} Qxd2 {[%emt 0:00:24]} 35. Rdxd2 {[%emt 0:00:01]} (35. Rexd2 $6 h5 36. gxh5 Nxh5 $16) ({Don't take} 35. Nxd2 f5 36. h3 h5 37. gxf5 Ngxf5 $18) 35... f5 {[%emt 0:00:12]} 36. g5 {[%emt 0:00:51]} Nh5 {[%emt 0:00:17]} 37. Rd4 {[%emt 0:00:30] Repels Nf4+} f4 {[%emt 0:00:04]} (37... Ne4 $142 38. Re3 Nf4+ 39. Kh1 Rce8 40. Nxe4 Rxe4) 38. a5 {[%emt 0:01:01]} Nc4 {[%emt 0:00:26]} 39. d6 {[%emt 0:00:40][%cal Bd5d6,Bd6d7][%mdl 32] Strongly threatening d7.} Nxa5 {[%emt 0:01:02]} 40. d7 {[%emt 0:00:01]} Rcd8 {[%emt 0:00:01]} 41. Ne5 $2 {[%emt 0:00:27]} (41. Na4 $18) 41... f3+ $1 $14 {[%emt 0:00:46]} 42. Nxf3 {[%emt 0:00:01] And now Re1 would win.} Nf4+ $2 {[%emt 0:00:01][%mdl 8192] [#]} (42... Nc6 $14 43. Rc4 Nf4+ 44. Rxf4 Rxf4) 43. Rxf4 $1 $18 {[%emt 0:00:01][%mdl 64] Deflection} Rxf4 {[%emt 0:00:02]} 44. Re8+ $2 {[%emt 0:00:59]} (44. Nd5) 44... Rf8 {[%emt 0:00:02]} 45. Rxd8 {[%emt 0:00:41]} ({Much less strong is} 45. b4 $6 Rxd7 46. Rxf8+ Kxf8 $14) 45... Rxd8 {[%emt 0:00:02][%mdl 4096] Endgame [#] KRN-KNN} 46. Ne5 {[%emt 0:00:00] Ne4 would be deadly.} Nc6 $2 {[%emt 0:01:05]} (46... Nb7) 47. Nxc6 {[%emt 0:00:06]} Rxd7 {[%emt 0:00:01]} 48. Kf3 $2 {[%emt 0:00:46]} (48. Nd5 $18 {White wants to mate with Nf6+.} Kg7 49. Nce7) 48... Rd2 $14 {[%emt 0:00:08][%csl LRb2,LRh2]} 49. Na4 {[%emt 0:00:04]} Rxh2 {[%emt 0:00:05]} ({Black should try} 49... Rc2 $1 $14 50. Nc3 Rxb2) 50. Ke4 {[%emt 0:00:06]} ({Better is} 50. b4 $16) 50... Rh4+ $15 {[%emt 0:00:05][%mdl 64] Skewer} 51. Kd5 {[%emt 0:00:04] aiming for b4.} Rxa4 {[%emt 0:00:01] KR-KN} 52. b4 {[%emt 0:00:01]} Kf7 {[%emt 0:01:42] ...Ra1 is the strong threat.} 53. b5 {[%emt 0:00:04] The position is equal.} Ra1 {[%emt 0:00:17] Threatens to win with ...Rd1+.} 54. b6 {[%emt 0:00:03]} (54. Ne5+ $2 Ke7 55. b6 Rb1 $19) 54... Rb1 {[%emt 0:00:02] [#]} 55. b7 {[%emt 0:00:01]} Kg7 {[%emt 0:00:18]} (55... Rxb7 $5 56. Nd8+ $8 Kg7 57. Nxb7 h6 $11) 56. b8=R {[%emt 0:00:09]} ({But not} 56. b8=B Rb5+ 57. Ke6 Rxg5 $15) 56... Rxb8 {[%emt 0:00:02]} 57. Nxb8 {[%emt 0:00:01]} h6 {[%emt 0:00:01] Black defended with fortune.   Weighted Error Value: White=0.47/Black=0.61} 1/2-1/2

[Event "Rapid Shavuot-A 2023"]
[Site "Ramat Gan"]
[Date "2023.05.25"]
[Round "2.17"]
[White "Uritsky, Yonathan"]
[Black "Shilon Rahav, Eliran"]
[Result "1-0"]
[ECO "B33"]
[WhiteElo "2118"]
[BlackElo "1840"]
[Annotator "TA"]
[PlyCount "67"]
[EventDate "2023.05.19"]
[EventType "swiss"]
[EventCountry "ISR"]
[SourceTitle "playchess.com"]
[Source "ChessBase"]
[SourceQuality "1"]
[TimeControl "900+5"]

{[%evp 19,67,113,119,106,106,117,122,127,107,116,133,98,113,81,91,-39,185,15,193,177,206,171,560,558,697,695,587,487,441,316,875,854,1556,838,2827,2662,2673,2443,2179,2124,29989,29987,29987,29988,29988,29989,29989,29990,29998,29999]} 1. e4 {[%emt 0:15:10]} c5 2. Nf3 Nc6 {[%emt 0:15:15]} 3. d4 cxd4 {[%emt 0:00:05]} 4. Nxd4 Nf6 {[%emt 0:00:05]} 5. Nc3 e5 {[%emt 0:00:05]} 6. Ndb5 {[%emt 0:00:25]} d6 {[%emt 0:00:05]} 7. Bg5 {[%emt 0:00:05]} a6 8. Na3 {[%emt 0:00:05]} b5 9. Bxf6 {[%emt 0:00:05]} Qxf6 {[%emt 0:00:15]} 10. Nd5 {[%emt 0:00:05]} Qd8 {[%emt 0:00:05] [#]} 11. Bxb5 $1 {[%emt 0:00:05][%mdl 512] B33: Sicilian: Pelikan and Sveshnikov Variations.} axb5 {[%emt 0:00:05]} 12. Nxb5 Qa5+ {[%emt 0:00:05]} 13. c3 {[%emt 0:00:00][%mdl 1024] White has strong compensation. White is better.} Kd8 {[%emt 0:00:00]} (13... Qxb5 $2 14. Nc7+ Kd8 15. Nxb5 $18) 14. a4 {[%emt 0:00:00] And now b4 would win.} Rb8 {[%emt 0:00:00]} 15. b4 {[%emt 0:00:00]} Qa6 {[%emt 0:00:00]} 16. Ndc7 {[%emt 0:00:00] Excellent horsemanship.} Qb7 {[%emt 0:00:00][%cal Oc6b4] [#]} (16... Qb6 $2 17. a5 Nxa5 18. Rxa5 $18) 17. Nxd6 {[%emt 0:00:00] White is much more active.} ({White should try} 17. O-O $1 $16) 17... Bxd6 $2 {[%emt 0:00:00] Black is now going downhill.} (17... Qxc7 $15 {stays ahead.} 18. Nxf7+ {[%mdl 64] Discovered Attack (Double check), Double Attack} Ke7 19. Nxh8 g6) 18. Qxd6+ $18 {[%emt 0:00:00]} Bd7 {[%emt 0:00:00]} 19. Nd5 {[%emt 0:00:00]} Re8 {[%emt 0:00:00]} 20. Rd1 $40 {[%emt 0:00:00][%mdl 128] [#] b5 would be deadly. White attacks with force.} Qa7 $146 {[%emt 0:00:00]} (20... Rc8 {is more resistant.} 21. Qc5 Ne7 22. Qa5+ Rc7) ({Predecessor:} 20... Rc8 21. Qc5 Rb8 22. a5 Rc8 23. Qe3 f6 24. O-O Ne7 25. Nb6 Rc7 26. Rd2 Ng6 {1-0 Blankenberg,B (2039)-Ster,P (1902) DESC T0038 email 2001}) 21. b5 {[%emt 0:00:00]} Re6 {[%emt 0:00:00]} 22. Qf8+ {[%emt 0:00:00]} Re8 {[%emt 0:00:00]} 23. Qxf7 {[%emt 0:00:00]} Ne7 {[%emt 0:00:00]} 24. Nb4 {[%emt 0:00:00]} (24. Qxg7 Nxd5 25. Rxd5 Rb7 26. Qf6+ (26. Qxh7 Qxa4 27. O-O Kc8 $18) (26. Rxe5 Rxe5 27. Qxe5 Qxa4 $16) 26... Kc8 $18) 24... Qb7 {[%emt 0:00:00] Wards off Nc6+} (24... Qxa4 25. Nc6+ {[%mdl 64] Deflection, Double Attack} (25. Qxg7 Qxb5 26. Rd3 Qc4 $11) 25... Kc7 26. Nxe7 Qxe4+ 27. Kf1 Rbd8) 25. O-O {[%emt 0:00:00] aiming for Na6.} (25. Qxg7 Qxe4+ 26. Kd2 (26. Kf1 Qc4+ 27. Kg1 Qb3 $11) 26... Rc8 $14) 25... Rc8 {[%emt 0:00:00]} 26. Rd3 {[%emt 0:00:00] Black must now prevent Rfd1.} Rc7 {[%emt 0:00:00]} 27. Rfd1 {[%emt 0:00:00]} h6 {[%emt 0:00:00]} 28. c4 {[%emt 0:00:00][%cal Bc3c4,Bc4c5][%mdl 32]} Rh8 {[%emt 0:00:00]} 29. c5 {[%emt 0:00:00]} Qxe4 {[%emt 0:00:00]} 30. Nc6+ {[%emt 0:00:00][%mdl 64] Deflection, Double Attack. White mates.} Kc8 {[%emt 0:00:00]} 31. Nxe7+ {[%emt 0:00:00]} Kb8 {[%emt 0:00:00]} 32. b6 {[%emt 0:00:00]} Rb7 {[%emt 0:00:00]} 33. c6 {[%emt 0:00:00]} Bxc6 {[%emt 0:00:00]} 34. Rd8+ {[%emt 0:00:00][%mdl 64] Back Rank. Beautiful play by Uritsky!   Weighted Error Value: White=0.29 (precise) /Black=0.78} 1-0